Cogmind - Beta 15 @@@ ROGUE MODE // 2025.10.16 @ 18:28:24 Player: Grey Result: Destroyed by G-50 Soldier with Heavy Laser Performance ------------- Evolutions (5) 2500 Regions Visited (12) 2400 Robots Destroyed (55) 275 Value Destroyed (2110) 2110 Prototype IDs (26) 520 Alien Tech Used (0) 0 Bonus (477) 477 TOTAL SCORE: 8282 Bonus ------- Follower Combat Kills 177 Aligned with FarCom 300 Cogmind --------- Core Integrity 0/1000 Matter 250/300 Energy 1605/1870 System Corruption 0% Temperature Cool (9) Movement Core (1250) Ox24 Location -5/Upper Caves Parts ------- > --- POWER (2) -------- Angular Momentum Engine Light Neutrino Core > --- PROPULSION (2) --- (None) > --- UTILITY (9) ------ Advanced Heat Sink High-capacity Storage Unit Superbattery Advanced Targeting Computer Matter Filter Improved Weapon Cycler Improved Propulsion Shielding Improved Recalibrator > --- WEAPON (4) ------- (None) > --- INVENTORY (20) --- Light Humpback High-capacity Matter Pod (200) Core Analyzer Armor Integrity Analyzer Peak State ------------ > --- POWER ------------ F-cell Engine Neutrino Core > --- PROPULSION ------- Compact Wheel Compact Wheel > --- UTILITY ---------- Improved Heat Sink Improved Heat Sink High-capacity Storage Unit Superbattery Advanced Targeting Computer Hardened Medium Armor Plating Improved Medium Armor Plating Advanced Shield Generator Improved Dynamic Insulation System > --- WEAPON ----------- Tesla Rifle Heavy Laser Beamcaster Gauss Rifle > --- INVENTORY -------- Angular Momentum Engine Angular Momentum Engine Light Neutrino Core Light Humpback High-capacity Matter Pod Advanced Targeting Computer Core Analyzer Armor Integrity Analyzer Matter Filter Improved Propulsion Shielding Improved Utility Shielding Light Armor Plating Improved Shield Generator Tesla Rifle Tesla Rifle Pulse Rifle [Rating: 78] Favorites ----------- Power F-cell Engine Engine F-cell Engine Power Core Neutrino Core Propulsion Compact Wheel Leg Flexi-carbon Leg Wheel Compact Wheel Utility Superbattery Device Improved Heat Sink Storage Superbattery Processor Advanced Targeting Computer Protection Hardened Medium Armor Plating Weapon Heavy Assault Rifle Energy Gun Improved Medium Laser Ballistic Gun Heavy Assault Rifle Build | -11 -10 -10 -10 -9 -8 -8 -7 -6 -6 -6 -5 -5 ------- Run | Yrd Mat Min Exi Min Mat Sto Fac Fac Low Low Fac Upp Slots Evolved 10 | . . . . . 4 . 2 2 . . 2 . Power 1 | . . . . . . . . 1 . . . . Propulsion . | . . . . . . . . . . . . . Utility 7 | . . . . . 3 . 2 1 . . 1 . Weapon 2 | . . . . . 1 . . . . . 1 . Parts Attached 63 | 6 2 2 1 . 4 4 2 9 1 . 22 10 Power 10 | 1 . . . . 1 1 . 3 . . 3 1 Engine 7 | 1 . . . . 1 1 . 2 . . 1 1 Core 3 | . . . . . . . . 1 . . 2 . Reactor . | . . . . . . . . . . . . . Propulsion 9 | 2 . . . . . 1 . 1 . . 3 2 Treads . | . . . . . . . . . . . . . Leg 1 | . . . . . . . . . . . . 1 Wheel 8 | 2 . . . . . 1 . 1 . . 3 1 Hover . | . . . . . . . . . . . . . Flight . | . . . . . . . . . . . . . Utility 30 | 1 2 . 1 . 3 2 2 2 . . 11 6 Device 14 | . . . . . 1 1 1 1 . . 6 4 Storage 5 | 1 1 . 1 . 1 . . . . . 1 . Processor 4 | . 1 . . . 1 1 . . . . . 1 Hackware . | . . . . . . . . . . . . . Protection 7 | . . . . . . . 1 1 . . 4 1 Artifact . | . . . . . . . . . . . . . Weapon 14 | 2 . 2 . . . . . 3 1 . 5 1 Energy Gun 9 | 1 . 1 . . . . . 2 . . 4 1 Energy Cannon . | . . . . . . . . . . . . . Ballistic Gun 5 | 1 . 1 . . . . . 1 1 . 1 . Ballistic Cannon . | . . . . . . . . . . . . . Launcher . | . . . . . . . . . . . . . Special Weapon . | . . . . . . . . . . . . . Impact Weapon . | . . . . . . . . . . . . . Slashing Weapon . | . . . . . . . . . . . . . Piercing Weapon . | . . . . . . . . . . . . . Special Melee Weapon . | . . . . . . . . . . . . . Unidentified Prototypes 3 | . . 1 . . . . . 1 . . 1 . Parts Lost 29 | . . . . . . 3 . 2 . . 6 18 Power 3 | . . . . . . . . . . . 1 2 Propulsion 6 | . . . . . . 1 . 1 . . 1 3 Utility 11 | . . . . . . 1 . . . . 2 8 Weapon 9 | . . . . . . 1 . 1 . . 2 5 Highest Loss Streak 10 | . . . . . . 1 . 2 . . 4 10 To Critical Strikes . | . . . . . . . . . . . . . Average Backups 18 | 1 5 15 16 17 18 21 20 19 23 25 20 9 Power 1 | . 1 1 1 1 1 . 1 1 3 4 3 2 Propulsion . | . . . . . . . 1 . . . 1 . Utility 11 | . 1 5 6 7 9 15 12 12 16 17 14 7 Weapon 5 | 1 2 9 8 9 8 5 6 5 4 4 2 . Tool/Special . | . . . . . . . . . . . . . Unused Backups 30 | . 1 . 3 . 1 10 . . . . 12 3 Power 3 | . . . . . 1 1 . . . . 1 . Propulsion 1 | . . . . . . . . . . . 1 . Utility 15 | . . . 3 . . 2 . . . . 7 3 Weapon 11 | . 1 . . . . 7 . . . . 3 . Tool/Special . | . . . . . . . . . . . . . Average Slot Usage (%) 88 | . 94 100 88 85 89 88 90 92 88 86 93 77 Engine 10 | . 14 14 14 14 9 9 7 12 13 13 8 10 Wheel 14 | . 28 28 28 28 18 16 15 12 8 6 9 4 Device 10 | . . . . . 8 9 13 13 13 13 18 16 Storage 14 | . 14 14 14 14 17 17 15 13 13 13 10 11 Processor 6 | . 8 14 3 . 8 9 7 6 6 6 5 10 Protection 6 | . . . . . . . 7 12 13 13 10 11 Energy Gun 14 | . 14 14 14 14 18 18 15 13 13 13 17 6 Ballistic Gun 7 | . 14 14 14 14 9 9 7 6 6 6 5 . Peak Build Rating 78 | 6 10 12 13 13 29 37 41 61 62 59 78 74 Average Rating 43 | 3 7 11 12 13 27 32 40 56 59 59 71 55 On Entrance 31 | . 6 10 12 13 13 29 35 41 61 59 59 73 Naked Turns . | . . . . . . . . . . . . . Heaviest Build 114 | 14 29 31 51 51 61 63 72 100 100 98 114 112 Greatest Support 32 | 32 32 32 32 32 32 32 32 32 26 16 32 32 Greatest Overweight (x) 27 | . . . 1 1 1 3 2 3 6 6 6 27 Average Overweight (x) 2 | . . . . 1 1 1 2 2 4 6 3 4 Largest Inventory Capacity 25 | 8 15 15 25 25 25 25 25 25 25 25 25 20 Average Capacity 23 | 6 13 15 22 25 25 24 25 25 25 25 23 20 Most Carried 25 | 4 15 15 18 17 22 25 21 23 25 25 25 14 Average Carried 18 | 1 5 15 16 17 18 21 20 19 23 25 21 10 Final Capacity 25 | 8 15 15 25 25 25 25 25 25 25 25 20 20 Final Carried 25 | 2 15 15 17 17 21 22 21 22 25 25 14 5 Class Distribution -------------------- 40% | Scavenger-Tank 29% | Skirmisher 28% | Mutant Dominant Class ---------------- Mutant | -10/Materials Mutant | -10/Mines Mutant | -10/Exiles Mutant | -9/Mines Skirmisher | -8/Materials Skirmisher | -8/Storage Tank | -7/Factory Scavenger-Tank | -6/Factory Scavenger-Tank | -6/Lower Caves Scavenger-Tank | -6/Lower Caves Scavenger-Tank | -5/Factory Mutant | -5/Upper Caves Resources | -11 -10 -10 -10 -9 -8 -8 -7 -6 -6 -6 -5 -5 ----------- Run | Yrd Mat Min Exi Min Mat Sto Fac Fac Low Low Fac Upp Matter Collected 1597 | 233 19 . 122 . 98 160 . 51 184 . 646 84 Remotely . | . . . . . . . . . . . . . Salvage Created 2499 | . 19 . . . 395 504 . 116 115 . 1235 115 Parts 128 | . 2 . . . 19 28 . 11 6 . 58 4 Haulers Intercepted . | . . . . . . . . . . . . . Recyclers Shooed . | . . . . . . . . . . . . . Parts Field Recycled . | . . . . . . . . . . . . . Retrieved Matter . | . . . . . . . . . . . . . Parts Self-Destructed 11 | . . . . . . . . . 6 3 . 2 Prevented 2 | . . . . . . . . . . . . 2 Kills | -11 -10 -10 -10 -9 -8 -8 -7 -6 -6 -6 -5 -5 ------- Run | Yrd Mat Min Exi Min Mat Sto Fac Fac Low Low Fac Upp Combat Hostiles Destroyed 40 | . . . . . 7 8 . 3 2 . 18 2 Guns 37 | . . . . . 7 8 . 3 2 . 15 2 Classes Destroyed 11 | . 1 . . . 3 4 . 1 . . 1 1 Worker 7 | . . . . . . 2 . . . . 5 . Builder 2 | . . . . . 1 . . 1 . . . . Recycler 2 | . . . . . . 1 . . . . 1 . Operator 1 | . . . . . . . . . . . 1 . Watcher 3 | . 1 . . . . 1 . . . . 1 . Swarmer 8 | . . . . . . 1 . 2 . . 5 . Grunt 14 | . . . . . 5 4 . . 2 . 3 . Duelist 2 | . . . . . . 1 . . . . 1 . Sentry 6 | . . . . . 2 2 . . . . 2 . Hunter 2 | . . . . . . . . . . . . 2 Programmer 8 | . . . . . . . . 1 . . 7 . Best Kill Streak 6 | . 1 . . . 4 3 . 2 2 . 6 2 Combat Bots Only 5 | . . . . . 4 3 . 2 2 . 5 2 Max Kills in Single Turn 2 | . 1 . . . 2 1 . 1 1 . 2 1 Gunslinging 1 | . . . . . . . . . . . 1 . Exploded . | . . . . . . . . . . . . . Melee . | . . . . . . . . . . . . . Uniques/NPCs Destroyed . | . . . . . . . . . . . . . Combat | -11 -10 -10 -10 -9 -8 -8 -7 -6 -6 -6 -5 -5 -------- Run | Yrd Mat Min Exi Min Mat Sto Fac Fac Low Low Fac Upp Hostile Shots Fired 394 | . 2 . . . 16 37 . 6 19 . 128 186 Missed 108 | . 2 . . . 3 11 . 2 5 . 40 45 Hits 286 | . . . . . 13 26 . 4 14 . 88 141 Melee 4 | . . . . . . 1 . . 2 . 1 . Projectile 282 | . . . . . 13 25 . 4 12 . 87 141 AOE 1 | . . . . . . . . . . . 1 . Critical Strikes 11 | . . . . . . 2 . . . . 3 6 Damage Taken 4347 | . . . . . 193 329 . 64 170 . 1672 1919 Core 1097 | . . . . . 30 42 . 13 . . 467 545 Absorbed by Shields 1278 | . . . . . 74 122 . 24 61 . 503 494 Redirected to Shielding 145 | . . . . . . . . . . . . 145 Regen/Repaired (Parts) 82 | . . . . . . 82 . . . . . . Core Remaining (%) 96 | 100 . . . 100 . 86 100 . . 98 . . Volleys Fired 140 | . 1 . . . 16 36 . 8 8 . 53 18 Largest 4 | . 2 . . . 3 3 . 3 3 . 4 4 Hottest 237 | . 60 . . . 119 119 . 174 174 . 237 225 Shots Fired 423 | . 2 . . . 48 100 . 23 22 . 189 39 Gun 423 | . 2 . . . 48 100 . 23 22 . 189 39 Cannon . | . . . . . . . . . . . . . Launcher . | . . . . . . . . . . . . . Special . | . . . . . . . . . . . . . Kinetic 131 | . 1 . . . 16 36 . 8 6 . 53 11 Thermal 199 | . . . . . 16 32 . 12 16 . 104 19 Explosive . | . . . . . . . . . . . . . Electromagnetic 93 | . 1 . . . 16 32 . 3 . . 32 9 Robot Hit Streak 16 | . 1 . . . 12 14 . 5 7 . 16 8 Robot Miss Streak 5 | . 1 . . . 1 5 . 2 3 . 5 3 Penetration Max . | . . . . . . . . . . . . . Secondary Targets 9 | . . . . . . 2 . 1 . . 5 1 Max Gunslinging Chain 2 | . . . . . . 1 . 1 . . 2 1 Shots Hit Robots 266 | . 1 . . . 36 57 . 14 14 . 118 26 Core Hits 105 | . 1 . . . 17 23 . 7 5 . 46 6 Critical Kills . | . . . . . . . . . . . . . Critical Parts Destroyed 1 | . . . . . . . . . . . . 1 Critical Strikes 14 | . . . . . 2 1 . 1 . . 8 2 Burn 11 | . . . . . 2 1 . 1 . . 6 1 Destroy 1 | . . . . . . . . . . . . 1 Corrupt 2 | . . . . . . . . . . . 2 . Melee Attacks . | . . . . . . . . . . . . . Impact . | . . . . . . . . . . . . . Slashing . | . . . . . . . . . . . . . Piercing . | . . . . . . . . . . . . . Sneak Attacks . | . . . . . . . . . . . . . Combat Hostiles . | . . . . . . . . . . . . . Follow-up Attacks . | . . . . . . . . . . . . . Damage Inflicted 5272 | . 15 . . . 664 874 . 286 266 . 2760 407 Guns 5112 | . 15 . . . 531 874 . 286 266 . 2733 407 Cannons . | . . . . . . . . . . . . . Explosions 133 | . . . . . 133 . . . . . . . Melee . | . . . . . . . . . . . . . Ramming 27 | . . . . . . . . . . . 27 . Kinetic 1309 | . 15 . . . 146 343 . 112 63 . 510 120 Thermal 2811 | . . . . . 321 325 . 163 203 . 1589 210 Explosive . | . . . . . . . . . . . . . Electromagnetic 1125 | . . . . . 197 206 . 11 . . 634 77 Impact . | . . . . . . . . . . . . . Slashing . | . . . . . . . . . . . . . Piercing . | . . . . . . . . . . . . . Highest Corruption 7 | . . . . . . . . . . . 7 . Average Corruption 4 | . . . . . . . . . . . 4 . Corruption Purged 8 | . . . . . . . . . . . 8 . Corruption Blocked . | . . . . . . . . . . . . . Effects 17 | . . . . . . . . . . . 17 . Message Errors 2 | . . . . . . . . . . . 2 . Matter Fused 5 | . . . . . . . . . . . 5 . Heat Flow Errors 1 | . . . . . . . . . . . 1 . Energy Discharges 4 | . . . . . . . . . . . 4 . Data Loss (minor) 1 | . . . . . . . . . . . 1 . Data Loss (major) 1 | . . . . . . . . . . . 1 . Misfires 1 | . . . . . . . . . . . 1 . Alerts 2 | . . . . . . . . . . . 2 . Overload Shots . | . . . . . . . . . . . . . Overflow Damage 2 | . . . . . 2 . . . . . . . Projectiles . | . . . . . . . . . . . . . Explosions 2 | . . . . . 2 . . . . . . . Melee . | . . . . . . . . . . . . . Knockbacks . | . . . . . . . . . . . . . Impact . | . . . . . . . . . . . . . Kinetic . | . . . . . . . . . . . . . Secondary . | . . . . . . . . . . . . . Self-Inflicted Damage 64 | . . . . . 51 . . . . . 13 . Shots 1 | . . . . . 1 . . . . . . . Rammed 1 | . . . . . . . . . . . 1 . Targets Rammed 1 | . . . . . . . . . . . 1 . Kicked . | . . . . . . . . . . . . . Crushed . | . . . . . . . . . . . . . Highest Temperature 689 | . . . . . 341 258 . 186 447 . 689 409 Average Temperature 155 | . . . . . 133 85 . 66 186 . 198 203 Received Heat Transfer 931 | . . . . . 66 146 . . 75 . 231 413 Effects 24 | . . . . . 1 . . . 1 . 17 5 Shutdowns 6 | . . . . . . . . . 1 . 4 1 Energy Bleed 5 | . . . . . 1 . . . . . 4 . Interference 6 | . . . . . . . . . . . 2 4 Matter Decay 1 | . . . . . . . . . . . 1 . Short Circuit 1 | . . . . . . . . . . . 1 . Damage (minor) 2 | . . . . . . . . . . . 2 . Damage (major) 1 | . . . . . . . . . . . 1 . Damage (core) 2 | . . . . . . . . . . . 2 . Siege Activations . | . . . . . . . . . . . . . Martial Activations . | . . . . . . . . . . . . . Shielding Activations . | . . . . . . . . . . . . . Robots Disrupted . | . . . . . . . . . . . . . Combat Hostiles . | . . . . . . . . . . . . . Robots Corrupted 2 | . . . . . . . . . . . 2 . Combat Hostiles 2 | . . . . . . . . . . . 2 . Parts Fried 7 | . . . . . . . . . . . 7 . Impact Corruptions . | . . . . . . . . . . . . . Robots Melted 1 | . . . . . . . . . . . 1 . Combat Hostiles 1 | . . . . . . . . . . . 1 . Parts Melted 19 | . . . . . 2 2 . 1 1 . 11 2 Heat Transferred 5872 | . . . . . 655 777 . 370 370 . 3182 518 Parts Sabotaged . | . . . . . . . . . . . . . Parts Stolen 2 | . . . . . . . . . 2 . . . Parts Stripped . | . . . . . . . . . . . . . Power Chain Reactions 1 | . . . . . 1 . . . . . . . Alert | -11 -10 -10 -10 -9 -8 -8 -7 -6 -6 -6 -5 -5 ------- Run | Yrd Mat Min Exi Min Mat Sto Fac Fac Low Low Fac Upp Maximum Alert Level 1 | . . . . . 1 1 . . . . . . Low Security (%) 98 | 100 100 100 . 100 95 96 100 100 . . 100 . Level 1 1 | . . . . . 4 3 . . . . . . Level 2 . | . . . . . . . . . . . . . Level 3 . | . . . . . . . . . . . . . Level 4 . | . . . . . . . . . . . . . Level 5 . | . . . . . . . . . . . . . High Security . | . . . . . . . . . . . . . Max Security . | . . . . . . . . . . . . . Peak Influence 233 | . 7 . . . 233 213 91 78 . . 163 . Initial 92 | . . . . . . 92 91 34 . . . . Average 33 | . . . . . 26 63 80 7 . . 42 . Influence Increases 1467 | . 7 . . . 281 432 . 109 70 . 518 50 Destroy 0b10 Robot/C 960 | . . . . . 140 300 . 80 40 . 360 40 Destroy 0b10 Robot/NC 80 | . 5 . . . 5 25 . 5 . . 40 . Destroy Leader 228 | . 2 . . . 40 74 . 20 . . 82 10 Allied During Kill 28 | . . . . . . 25 . 3 . . . . Successful Hack 11 | . . . . . . 7 . . . . 4 . Disable Machine 30 | . . . . . 15 . . . . . 15 . Destroy Structure 10 | . . . . . 6 1 . 1 . . 2 . Lose Combat Pursuer 120 | . . . . . 75 . . . 30 . 15 . Influence Decreases 1467 | . 7 . . . 60 452 130 164 48 38 375 193 Entered New Map 344 | . . . . . . 129 110 37 7 8 . 53 Time Decay 893 | . 7 . . . 60 273 20 87 41 30 315 60 Lost Part 190 | . . . . . . 30 . 20 . . 60 80 Lost Ally 40 | . . . . . . 20 . 20 . . . . Squads Dispatched 10 | . 1 . . . 1 3 . 1 . . 4 . Investigation 1 | . 1 . . . . . . . . . . . Extermination 3 | . . . . . . . . 1 . . 2 . Reinforcement 4 | . . . . . 1 1 . . . . 2 . Assault 2 | . . . . . . 2 . . . . . . Garrison . | . . . . . . . . . . . . . Intercept . | . . . . . . . . . . . . . Searches Triggered . | . . . . . . . . . . . . . Construction Impeded 1 | . . . . . . . . . . . 1 . Haulers Reinforced . | . . . . . . . . . . . . . Active Scanning Responses . | . . . . . . . . . . . . . Cargo Convoy Interrupts . | . . . . . . . . . . . . . Stealth | -11 -10 -10 -10 -9 -8 -8 -7 -6 -6 -6 -5 -5 --------- Run | Yrd Mat Min Exi Min Mat Sto Fac Fac Low Low Fac Upp Distress Signals 2 | . . . . . 1 1 . . . . . . Communications Jammed . | . . . . . . . . . . . . . Distress Signals . | . . . . . . . . . . . . . Times Spotted 72 | . 6 . . . 8 19 . 4 7 . 21 7 Peak Tracking Total 5 | . 5 . . . 5 4 . 3 4 . 5 5 Tactical Retreats 4 | . . . . . 2 . . . 1 . 1 . Traps | -11 -10 -10 -10 -9 -8 -8 -7 -6 -6 -6 -5 -5 ------- Run | Yrd Mat Min Exi Min Mat Sto Fac Fac Low Low Fac Upp Traps Triggered 3 | . 1 . . . . . . 2 . . . . Indirectly . | . . . . . . . . . . . . . Trap Hack Attempts . | . . . . . . . . . . . . . Triggered . | . . . . . . . . . . . . . Disarmed . | . . . . . . . . . . . . . Reprogrammed . | . . . . . . . . . . . . . Reused . | . . . . . . . . . . . . . Traps Extracted . | . . . . . . . . . . . . . Installed . | . . . . . . . . . . . . . Triggered . | . . . . . . . . . . . . . Machines | -11 -10 -10 -10 -9 -8 -8 -7 -6 -6 -6 -5 -5 ---------- Run | Yrd Mat Min Exi Min Mat Sto Fac Fac Low Low Fac Upp Machines Disabled 2 | . . . . . 1 . . . . . 1 . Max in Single Turn 1 | . . . . . 1 . . . . . 1 . Machines Repaired . | . . . . . . . . . . . . . Machines Dismantled . | . . . . . . . . . . . . . Machines Sabotaged . | . . . . . . . . . . . . . Overloaded Fab Kills . | . . . . . . . . . . . . . Hacking | -11 -10 -10 -10 -9 -8 -8 -7 -6 -6 -6 -5 -5 --------- Run | Yrd Mat Min Exi Min Mat Sto Fac Fac Low Low Fac Upp Machines Accessed 7 | . . . 1 . 1 3 . . . . 2 . Terminals 4 | . . . . . 1 2 . . . . 1 . Fabricators . | . . . . . . . . . . . . . Repair Stations 2 | . . . . . . 1 . . . . 1 . Recycling Units . | . . . . . . . . . . . . . Scanalyzers . | . . . . . . . . . . . . . Garrison Access . | . . . . . . . . . . . . . Total Hacks 10 | . . . 1 . 1 6 . . . . 2 . Successful 6 | . . . 1 . . 4 . . . . 1 . Failed 4 | . . . . . 1 2 . . . . 1 . Catastrophic . | . . . . . . . . . . . . . Database Lockouts . | . . . . . . . . . . . . . Manual 2 | . . . 1 . . 1 . . . . . . Terminals 4 | . . . . . 1 2 . . . . 1 . Fabricators . | . . . . . . . . . . . . . Repair Stations 5 | . . . . . . 4 . . . . 1 . Recycling Units . | . . . . . . . . . . . . . Scanalyzers . | . . . . . . . . . . . . . Garrison Access . | . . . . . . . . . . . . . Terminal Hacks 4 | . . . 1 . . 2 . . . . 1 . Record 1 | . . . . . . . . . . . 1 . Open Door 2 | . . . . . . 2 . . . . . . Proto ID Catalog 1 | . . . 1 . . . . . . . . . Fabricator Hacks . | . . . . . . . . . . . . . Repair Station Hacks 2 | . . . . . . 2 . . . . . . Scan Component 1 | . . . . . . 1 . . . . . . Repair 1 | . . . . . . 1 . . . . . . Recycling Unit Hacks . | . . . . . . . . . . . . . Scanalyzer . | . . . . . . . . . . . . . Garrison Access Hacks . | . . . . . . . . . . . . . Unauthorized Hacks . | . . . . . . . . . . . . . Terminals . | . . . . . . . . . . . . . Fabricators . | . . . . . . . . . . . . . Repair Stations . | . . . . . . . . . . . . . Recycling Units . | . . . . . . . . . . . . . Scanalyzers . | . . . . . . . . . . . . . Garrison Access . | . . . . . . . . . . . . . Data Cores Recovered . | . . . . . . . . . . . . . Used . | . . . . . . . . . . . . . Hacking Detections 3 | . . . . . 1 . . . . . 2 . Full Trace Events . | . . . . . . . . . . . . . Feedback Events . | . . . . . . . . . . . . . Feedback Blocked . | . . . . . . . . . . . . . Robot Schematics Acquired . | . . . . . . . . . . . . . Robots Built . | . . . . . . . . . . . . . Authchips . | . . . . . . . . . . . . . Time . | . . . . . . . . . . . . . Total Robot Build Rating . | . . . . . . . . . . . . . Part Schematics Acquired . | . . . . . . . . . . . . . Parts Built . | . . . . . . . . . . . . . Authchips . | . . . . . . . . . . . . . Time . | . . . . . . . . . . . . . Total Part Build Rating . | . . . . . . . . . . . . . Parts Repaired 1 | . . . . . . 1 . . . . . . Time 26 | . . . . . . 26 . . . . . . Parts Recycled . | . . . . . . . . . . . . . Recycled Matter . | . . . . . . . . . . . . . Retrieved Matter . | . . . . . . . . . . . . . Retrieved Components . | . . . . . . . . . . . . . Parts Scanalyzed . | . . . . . . . . . . . . . Part Schematics Acquired . | . . . . . . . . . . . . . Parts Damaged . | . . . . . . . . . . . . . Bothacking | -11 -10 -10 -10 -9 -8 -8 -7 -6 -6 -6 -5 -5 ------------ Run | Yrd Mat Min Exi Min Mat Sto Fac Fac Low Low Fac Upp Used RIF Installer . | . . . . . . . . . . . . . Robots Hacked . | . . . . . . . . . . . . . Non-combat . | . . . . . . . . . . . . . Combat . | . . . . . . . . . . . . . Robot Hacks Applied . | . . . . . . . . . . . . . Relay Couplers Released 3 | . . . . . . . . . . . 3 . Programmers 3 | . . . . . . . . . . . 3 . Fabnet Peak Effective % . | . . . . . . . . . . . . . Robots Rewired . | . . . . . . . . . . . . . Allies Hacked . | . . . . . . . . . . . . . Hacks Repelled . | . . . . . . . . . . . . . Allies | -11 -10 -10 -10 -9 -8 -8 -7 -6 -6 -6 -5 -5 -------- Run | Yrd Mat Min Exi Min Mat Sto Fac Fac Low Low Fac Upp Total Allies 2 | . . . . . . 2 . . . . . . Largest Group 2 | . . . . . . 2 1 1 . . . . Highest-Rated Group 62 | . . . . . . 62 31 31 . . . . Highest-Rated Ally 31 | . . . . . . 31 31 31 . . . . Total Orders . | . . . . . . . . . . . . . Ally Attacks 50 | . . . . . . 44 . 6 . . . . Total Damage 656 | . . . . . . 592 . 64 . . . . Kills 9 | . . . . . . 8 . 1 . . . . Allies Corrupted . | . . . . . . . . . . . . . Allies Melted . | . . . . . . . . . . . . . Intel | -11 -10 -10 -10 -9 -8 -8 -7 -6 -6 -6 -5 -5 ------- Run | Yrd Mat Min Exi Min Mat Sto Fac Fac Low Low Fac Upp Active Infowar (turns) . | . . . . . . . . . . . . . Robot Analysis Total . | . . . . . . . . . . . . . Derelict Logs Recovered 3 | . . . . 2 . . . . . . . 1 Drone Launches . | . . . . . . . . . . . . . Drone Recoveries . | . . . . . . . . . . . . . Exploration | -11 -10 -10 -10 -9 -8 -8 -7 -6 -6 -6 -5 -5 ------------- Run | Yrd Mat Min Exi Min Mat Sto Fac Fac Low Low Fac Upp Turns Passed 7386 | 49 123 14 726 469 982 1188 59 818 686 101 1416 755 Spaces Moved 3346 | 36 99 12 630 248 307 354 44 307 384 54 565 306 Core 5 | 1 . . . . . . . . . . . 4 Treads . | . . . . . . . . . . . . . Legs 45 | . . . . . . . . . . . . 45 Wheels 3296 | 35 99 12 630 248 307 354 44 307 384 54 565 257 Hover . | . . . . . . . . . . . . . Flight . | . . . . . . . . . . . . . Fastest Speed 50 | 50 100 100 100 115 115 115 130 130 135 190 130 145 Average Speed 138 | 98 100 100 110 115 115 121 130 134 161 190 155 217 Slowest Speed 1400 | 100 100 100 115 115 115 145 130 135 190 190 190 1400 Overloaded Moves . | . . . . . . . . . . . . . Propulsion Burnouts . | . . . . . . . . . . . . . Robots Hopped . | . . . . . . . . . . . . . Potential Cave-ins . | . . . . . . . . . . . . . Cave-ins Triggered . | . . . . . . . . . . . . . Exploration Rate (%) 29 | 4 20 6 77 57 25 52 2 10 60 11 15 47 Regions Visited 12 Branch Regions 7 Pre-discovered Areas . | . . . . . . . . . . . . . Known Exits Taken . | . . . . . . . . . . . . . Unknown Exits Taken 12 | 1 1 1 1 1 1 1 1 1 1 1 1 . Scrap Searched 3 | . . . . . . . . . 2 . . 1 Spaces Dug . | . . . . . . . . . . . . . Terrain Destroyed 6 | . . . . . 3 . . . . . 3 . Melee . | . . . . . . . . . . . . . Projectile 3 | . . . . . . . . . . . 3 . AOE 3 | . . . . . 3 . . . . . . . Terrain Rammed . | . . . . . . . . . . . . . Walls Destroyed . | . . . . . . . . . . . . . Machines Disabled . | . . . . . . . . . . . . . Actions | -11 -10 -10 -10 -9 -8 -8 -7 -6 -6 -6 -5 -5 --------- Run | Yrd Mat Min Exi Min Mat Sto Fac Fac Low Low Fac Upp Total 5784 | 49 121 13 664 431 900 1041 46 692 432 53 978 364 Wait 2042 | . 2 . 9 184 561 607 . 339 36 . 283 21 Move 3334 | 35 98 11 629 247 306 353 43 306 383 53 564 306 Hop . | . . . . . . . . . . . . . Pick Up 131 | 8 16 . 18 . 10 31 1 9 4 . 30 4 Fast Attach 2 | . . . . . . 1 . . . . 1 . Attach 45 | 6 1 . 1 . 4 2 2 4 1 . 13 11 Detach . | . . . . . . . . . . . . . Swap 27 | . 1 2 . . 1 2 . 6 . . 13 2 Drop 46 | . 2 . 7 . 2 9 . 4 . . 20 2 Fire 140 | . 1 . . . 16 36 . 8 8 . 53 18 Melee . | . . . . . . . . . . . . . Ram 1 | . . . . . . . . . . . 1 . Kick . | . . . . . . . . . . . . . Crush . | . . . . . . . . . . . . . Escape Stasis 16 | . . . . . . . . 16 . . . . Rewire . | . . . . . . . . . . . . . Trap . | . . . . . . . . . . . . . Miscellaneous . | . . . . . . . . . . . . . Route ------- -11/Scrapyard -10/Materials -10/Mines -10/Exiles (discovered 2 exits: [*Min x2]) -9/Mines -8/Materials -8/Storage -7/Factory -6/Factory -6/Lower Caves -6/Lower Caves -5/Factory -5/Upper Caves History --------- Turn | Location | Event 11 | -11/Scrapyard | Discovered new exit (range 16) 50 | -11/Scrapyard | Entered Materials 114 | -10/Materials | Discovered new exit (range 15) 173 | -10/Materials | Entered Mines 183 | -10/Mines | Deemed a non-threat by the Exiles lab entrance 183 | -10/Mines | Discovered new exit (range 5) 187 | -10/Mines | Entered Exiles 210 | -10/Exiles | Met 8R-AWN 228 | -10/Exiles | Met EX-HEX 256 | -10/Exiles | Met EX-BIN 268 | -10/Exiles | Aligned with FarCom system 269 | -10/Exiles | Given EX-Vault access code 292 | -10/Exiles | Opened EX-Vault 307 | -10/Exiles | Warned to stay clear of 0b10 Research branches 310 | -10/Exiles | Build established: Mutant 537 | -10/Exiles | Found Superbattery 608 | -10/Exiles | Met EX-DEC 682 | -10/Exiles | Discovered new exit (range 14) 807 | -10/Exiles | Visited The Gauntlet 899 | -10/Exiles | Discovered new exit (range 14) 913 | -10/Exiles | Left Exiles lab with Superbattery 913 | -10/Exiles | Entered Mines 1125 | -9/Mines | Learned Materials stockpile data 1127 | -9/Mines | Learned Materials stockpile data 1368 | -9/Mines | Discovered new exit (range 12) 1382 | -9/Mines | Entered Materials 1382 | -8/Materials | Evolved 4 slots: Utility x3, Weapon x1 1695 | -8/Materials | Build established: Skirmisher 2347 | -8/Materials | Discovered new exit (range 16) 2364 | -8/Materials | Entered Storage 3112 | -8/Storage | Met a pair of Derelict thieves 3355 | -8/Storage | Repaired Lgt. Humpback 3524 | -8/Storage | Discovered new exit (range 16) 3552 | -8/Storage | Entered Factory 3552 | -7/Factory | Accompanied by 1 ally 3552 | -7/Factory | Evolved 2 slots: Utility x2 3597 | -7/Factory | Discovered new exit (range 10) 3611 | -7/Factory | Entered another Factory area 3611 | -6/Factory | Accompanied by 1 ally 3611 | -6/Factory | Evolved 2 slots: Power x1, Utility x1 4018 | -6/Factory | Build established: Scavenger-Tank 4409 | -6/Factory | Discovered new exit (range 15) 4429 | -6/Factory | Entered Lower Caves 5079 | -6/Lower Caves | Discovered new exit (range 9) 5115 | -6/Lower Caves | Entered another Lower Caves area 5199 | -6/Lower Caves | Discovered new exit (range 10) 5216 | -6/Lower Caves | Entered Factory 5216 | -5/Factory | Evolved 2 slots: Utility x1, Weapon x1 6393 | -5/Factory | Discovered new exit (range 14) 6542 | -5/Factory | Lost 4 parts (1p1u2w) 6632 | -5/Factory | Entered Upper Caves 6706 | -5/Upper Caves | Core integrity fell below 50% 6761 | -5/Upper Caves | Lost 10 parts (2n4u4w) 6990 | -5/Upper Caves | Build established: Mutant 7030 | -5/Upper Caves | Learned location of 2 exits from Factory 7378 | -5/Upper Caves | Core integrity fell below 20% 7387 | -5/Upper Caves | Destroyed by G-50 Soldier with Heavy Laser Last Messages --------------- 06940_ Found Com. Wheel. 06940_ Found 41 Matter. 06948_ Acquired Com. Wheel. 06950_ Dropped Flexi-carbon Leg. 06953_ Acquired Imp. Weapon Cycler. 06954_ Acquired 10 matter. 07022_ Acquired Adv. Heat Sink. 07030_ Acquired derelict log, extracted data. Data stored: Factory exits (x2). 07040_ Dropped Imp. Dynamic Insulation System. 07133_ Acquired 10 matter. 07350_ Pulse Rifle destroyed. 07353_ Imp. Utility Shielding destroyed. 07354_ F-cell Engine destroyed. 07355_ Critical hit (Burn: +26). 07362_ Com. Wheel destroyed. 07369_ Imp. Shield Generator destroyed. 07370_ Angular Momentum Engine destroyed. 07372_ Imp. Heat Sink destroyed. 07378_ Adv. Targeting Computer destroyed. Map ----- +----------------------------------------------------+ | ?????????????????????????????????????????????????? | | ?????????????????????????????????????????????????? | | ?????????????????????????????????????????????????? | | ?????????????????????????????????????????????????? | | ?????????????????????????????????????????????????? | | ?????????????????????????????????????????????????? | | ?????????????????????????????????????????????????? | | ?????????????????????????????????????????????????? | | ?????????????????????????????????????????????????? | | ?????????????????????????????????????????????????? | | ?????? ????????????????????????????????????? ????? | | ???? ???????????????????????????????????? #??? | | ? ???????????????????????????????????? #??? | | ???????????????????????????????????? #??? | | ???????????????????????????????????? #??? | | ???????????????????????????????????? #??? | | ??????????????????????????????????## #### | | ????????######???????????????????## | | ##?????## #????###?#####??????# ?? | | ###???# #????# ### #?????## #??## | | ? ###?# ###??# #?????## #???# | | ?? #?# #### #?##### ##### | | ???? #??# ## ### ## | | ??????# ##?# % ## | | ??????# ### ## #### | | ??????# ## g @ ##### #??# | | ??????## g g #??## ## ###??? | | ???????### ##?## ######????? | | ?????????# g #####??# #???????## | | ?????????## g #??????# #?????## | | ??????????## ##??????### ## ####### | | ???????????###########?????????########### | | ?????????????????????????????????????????# | | ?????????????????????????????????????????# | | ?????????????????????????????????????????## | | ??????????????????????????????????????????# # | | ??????????????????????????????????????????## ## | | ???????????????????????????????????????????######? | | ?????????????????????????????????????????????????? | | ?????????????????????????????????????????????????? | | ?????????????????????????????????????????????????? | | ?????????????????????????????????????????????????? | | ?????????????????????????????????????????????????# | | ?????????????????????????????????????????????????# | | ??????????????????????????????????????????##?????# | | ??????????????????????????????????????????# ###??# | | ??????????????????????????????????????????# ##?# | | ??????????????????????????????????????????# #?# | | ?????????????????????????????????????????## ### | | ????????????????????????????????????????## | +----------------------------------------------------+ Best States ------------- Heat Dissipation 73 Energy Generation 39 Energy Capacity 2215 Matter Stores 300 Matter Capacity 300 Sight Range 16 Terrain Scan Density 10 EM Shielding 3 Armor Coverage 600 Propulsion Shielding 66 Utility Shielding 66 Evasion (%) 40 Targeting Accuracy 16 Item Schematics ----------------- None Robot Schematics ------------------ None Fabricated ------------ Nothing Repaired ---------- Lgt. Humpback | 45% | -8/Storage Alien Tech Used ----------------- None Achievements -------------- None Challenges ------------ None Game ------ Seed AdvancedArcsightThrower Manual? 0 Play Time 01:16:36 Cumulative 23.9 hours Start 2025.10.16 @ 17:07:25 End 2025.10.16 @ 18:28:24 Sessions 1 Manual Loads 0 Difficulty Rogue Special Mode None Game No. 24 Rogue 24 Adventurer 0 Explorer 0 Win Type - Total 0 Types 0/0/0/0/0/0/0/0/0/0 Lore% 13 Gallery% 24 Achievement% 19 Wizard Run 0 Options --------- Layout 1 ASCII 0 Keyboard 0 Movement Mouse Keybinds 0 Fullscreen 1 Font 32/SmallcapsGlow Map View 50x35 Zoom Use 0% Tactical HUD 1 Map Filters NONE Filters NONE Steam 1 RUN: d02619d9-c01a-47c3-b8b0-c510de92f615